bitfinex/quotes_BTCUSD_20230118
["timestamp","ask_amount","ask_price","bid_price","bid_amount"]
[1674044361344,0.28211905,21246.0,21241.0,2.67700539]
[1674044361345,0.11283228,21246.0,21241.0,2.67700539]
[1674044361615,0.60083126,21247.0,21245.0,0.1109]
[1674044361885,0.60083126,21247.0,21246.0,0.1109]
[1674044362430,2.14010371,21247.0,21246.0,0.1109]
[1674044362694,0.80353298,21247.0,21246.0,0.1109]
[1674044363198,2.0270295,21247.0,21246.0,0.1109]
[1674044363460,2.0270295,21247.0,21245.0,0.581292]
[1674044363961,0.338057,21246.0,21245.0,0.581292]
[1674044364229,1.07298998,21247.0,21245.0,0.58121094]
[1674044364483,1.07298998,21247.0,21245.0,0.1106]
[1674044364484,0.65661981,21246.0,21245.0,0.1106]
[1674044364742,0.65661981,21246.0,21244.0,0.1109]
[1674044365059,0.317211,21245.0,21244.0,0.1109]
[1674044366822,0.399211,21245.0,21244.0,0.001]
[1674044367076,0.549211,21245.0,21244.0,0.001]
[1674044367350,1.328655,21245.0,21244.0,0.001]
[1674044368785,1.61061957,21245.0,21244.0,0.001]
[1674044369280,2.55230213,21245.0,21244.0,0.001]
[1674044369800,1.77285813,21245.0,21244.0,0.001]
[1674044370023,0.83117557,21245.0,21244.0,0.001]
[1674044370551,0.5118888,21245.0,21244.0,0.001]
[1674044370805,0.399211,21245.0,21244.0,0.1116]
[1674044371338,0.399211,21245.0,21244.0,0.001]
[1674044371618,0.399211,21245.0,21244.0,0.10092]
[1674044371873,0.082,21245.0,21244.0,0.10092]
[1674044372389,0.082,21245.0,21244.0,0.001]
[1674044372664,0.62398966,21245.0,21244.0,0.001]
[1674044372933,0.427555,21245.0,21244.0,0.001]
[1674044373700,0.427555,21245.0,21244.0,0.10092]
[1674044373955,0.427555,21245.0,21244.0,0.001]
[1674044374474,0.427555,21245.0,21244.0,0.10092]
[1674044374700,0.427555,21245.0,21244.0,0.571641]
[1674044374959,0.427555,21245.0,21244.0,0.001]
[1674044378697,0.427555,21245.0,21244.0,0.10092]
[1674044379687,0.427555,21245.0,21244.0,0.793141]
[1674044379688,0.082,21245.0,21244.0,0.793141]
[1674044379946,0.082,21245.0,21244.0,1.55074357]
[1674044380220,0.082,21245.0,21244.0,1.92897451]
[1674044380503,0.082,21245.0,21244.0,1.85074357]
[1674044382104,0.082,21245.0,21244.0,1.55074357]
[1674044382361,0.08189311,21245.0,21244.0,1.55074357]
[1674044384000,0.08189311,21245.0,21244.0,1.85074357]
[1674044385102,0.08189311,21245.0,21244.0,1.55074357]
[1674044386410,0.08189311,21245.0,21244.0,1.85074357]
[1674044387984,0.08189311,21245.0,21244.0,1.85049857]
[1674044389341,0.08189311,21245.0,21244.0,1.96099857]
[1674044390972,0.08189311,21245.0,21244.0,3.01132951]
[1674044394382,0.08189311,21245.0,21244.0,2.34702951]
[1674044396008,0.08189311,21245.0,21244.0,2.31663894]
[1674044396317,0.08189311,21245.0,21244.0,2.35046587]
[1674044396923,0.48799898,21247.0,21244.0,1.97147993]
[1674044397181,0.48799898,21247.0,21246.0,0.2208]
[1674044397485,0.48799898,21247.0,21246.0,1.941328]
[1674044397788,0.48799898,21247.0,21246.0,2.19779]
[1674044398828,0.48799898,21247.0,21246.0,2.28464587]
[1674044399628,0.49699898,21247.0,21246.0,2.29364587]
[1674044400159,0.49699898,21247.0,21246.0,2.28514587]
[1674044400957,0.49699898,21247.0,21246.0,1.98514587]
[1674044401215,0.49699898,21247.0,21246.0,1.72868387]
[1674044401967,0.49699898,21247.0,21246.0,1.03720787]
[1674044402254,0.49699898,21247.0,21246.0,1.00384236]
[1674044402517,0.81153498,21247.0,21246.0,0.53316636]
[1674044402774,0.81153498,21247.0,21246.0,0.06249036]
[1674044408558,0.80253498,21247.0,21246.0,0.05349036]
[1674044408777,0.80853498,21247.0,21246.0,0.06149036]
[1674044409460,0.80253498,21247.0,21246.0,0.05349036]
[1674044409731,0.88553498,21247.0,21246.0,0.05449036]
[1674044410548,1.28737851,21247.0,21246.0,0.05449036]
[1674044410902,0.99643498,21247.0,21246.0,0.05449036]
[1674044411730,0.99643498,21247.0,21246.0,0.52516636]
[1674044411982,0.99643498,21247.0,21246.0,0.05449036]
[1674044412260,0.99643498,21247.0,21246.0,0.52516636]
[1674044412549,0.99643498,21247.0,21246.0,0.05449036]
[1674044413352,0.88553498,21247.0,21246.0,0.05449036]
[1674044413869,0.88553498,21247.0,21246.0,0.52516636]
[1674044414381,0.88553498,21247.0,21246.0,0.05449036]
[1674044414659,0.88265198,21247.0,21246.0,0.05449036]
[1674044415675,0.394653,21247.0,21246.0,0.05449036]
[1674044416469,0.72668526,21247.0,21246.0,0.05449036]
[1674044416725,1.30823926,21247.0,21246.0,0.05449036]
[1674044417515,2.4190676,21247.0,21246.0,0.05449036]
[1674044418032,2.8897216,21247.0,21246.0,0.05449036]
[1674044418297,1.77889326,21247.0,21246.0,0.05449036]
[1674044418568,2.88974949,21247.0,21246.0,0.05449036]
[1674044419070,3.36695118,21247.0,21246.0,0.05449036]
[1674044419324,3.791761,21247.0,21246.0,0.05449036]
[1674044419577,3.7915508,21247.0,21246.0,0.05449036]
[1674044419829,3.56583213,21247.0,21246.0,0.05449036]
[1674044420605,3.79154782,21247.0,21246.0,0.05449036]
[1674044420855,3.62247423,21247.0,21246.0,0.05449036]
[1674044421144,3.79153958,21247.0,21246.0,0.05449036]
[1674044421902,3.34646943,21247.0,21246.0,0.05449036]
[1674044422681,3.29008839,21247.0,21246.0,0.05449036]
[1674044422926,2.34852711,21247.0,21246.0,0.05449036]
[1674044423184,3.45916139,21247.0,21246.0,0.05449036]
[1674044423692,3.29009344,21247.0,21246.0,0.05449036]
[1674044423952,3.45915879,21247.0,21246.0,0.05449036]
[1674044424483,3.91398978,21247.0,21246.0,0.05449036]
[1674044425550,3.91398313,21247.0,21246.0,0.05449036]
[1674044425809,4.02701298,21247.0,21246.0,0.05449036]
[1674044426859,3.40311664,21247.0,21246.0,0.05449036]
[1674044427123,3.34640892,21247.0,21246.0,0.05449036]
[1674044427383,3.34640892,21247.0,21242.0,0.99358059]
[1674044427675,0.80243869,21246.0,21242.0,0.99358059]
[1674044427927,0.94788769,21246.0,21242.0,0.99358059]
[1674044428440,1.06055772,21246.0,21242.0,1.00058059]
[1674044428689,0.336586,21245.0,21242.0,0.52282759]
[1674044428961,0.331766,21244.0,21242.0,0.52982759]
[1674044429211,0.470699,21245.0,21242.0,0.52982759]
[1674044430354,0.009,21244.0,21242.0,0.52982759]
[1674044431938,0.94788769,21246.0,21242.0,0.52282759]
[1674044432195,0.009,21245.0,21242.0,0.72055354]
[1674044432473,1.23222819,21246.0,21242.0,0.52282759]
[1674044432731,0.2218,21243.0,21242.0,0.007]
[1674044433196,0.2218,21243.0,21241.0,0.23]
[1674044433197,1.163286,21243.0,21241.0,0.23]
[1674044433198,1.468599,21243.0,21242.0,0.007]
[1674044433467,2.05256562,21243.0,21241.0,0.23]
[1674044433731,1.85992265,21243.0,21242.0,0.001]
[1674044433994,2.17020162,21243.0,21241.0,0.23]
[1674044434277,0.433395,21242.0,21241.0,0.23]
[1674044434534,0.90416,21242.0,21241.0,0.23]
[1674044435052,1.23522272,21242.0,21241.0,0.23]
[1674044435870,1.31922272,21242.0,21241.0,0.231]
[1674044436120,1.30646671,21242.0,21241.0,0.231]
[1674044436377,0.97540399,21242.0,21241.0,0.231]
[1674044439910,1.44616899,21242.0,21241.0,0.231]
[1674044440174,1.72133106,21242.0,21241.0,0.231]
[1674044440437,1.36323609,21242.0,21241.0,0.231]
[1674044440692,1.25056606,21242.0,21241.0,0.231]
[1674044441526,1.58960513,21242.0,21241.0,0.231]
[1674044441796,1.25056606,21242.0,21241.0,0.231]
[1674044451885,0.31470386,21241.0,21237.0,0.00241654]
[1674044452148,2.59102875,21240.0,21237.0,0.03799158]
[1674044452408,0.79824069,21239.0,21237.0,0.03799158]
[1674044452665,0.319664,21238.0,21237.0,0.03799158]
[1674044454041,0.319664,21238.0,21237.0,0.00241654]
[1674044455091,0.410664,21238.0,21237.0,0.00241654]
[1674044455382,0.881518,21238.0,21237.0,0.00241654]
[1674044456154,0.878381,21238.0,21237.0,0.00241654]
[1674044456900,1.17114988,21238.0,21237.0,0.00241654]
[1674044457156,2.12724094,21238.0,21237.0,0.00241654]
[1674044460562,1.83447206,21238.0,21237.0,0.00241654]
[1674044466016,2.5349072,21238.0,21237.0,0.00241654]
[1674044466817,3.64585878,21238.0,21237.0,0.00241654]
[1674044467088,2.42227375,21238.0,21237.0,0.00241654]
[1674044467359,2.5349072,21238.0,21237.0,0.00241654]
[1674044467628,3.00900937,21238.0,21237.0,0.00241654]
[1674044467883,2.89637592,21238.0,21237.0,0.00241654]
[1674044468140,3.00900937,21238.0,21237.0,0.00241654]
[1674044470724,4.11994817,21238.0,21237.0,0.00241654]
[1674044471003,4.11993268,21238.0,21237.0,0.00241654]
[1674044471238,4.00731472,21238.0,21237.0,0.00241654]
[1674044471750,4.23254685,21238.0,21237.0,0.00241654]
[1674044472779,4.56744571,21238.0,21237.0,0.00241654]
[1674044473302,4.2852593,21238.0,21237.0,0.00241654]
[1674044473569,4.06359668,21238.0,21237.0,0.00241654]
[1674044474066,4.23254995,21238.0,21237.0,0.00241654]
[1674044475170,4.23254995,21238.0,21237.0,0.00233534]
[1674044475447,4.00731782,21238.0,21237.0,0.00233534]
[1674044475711,4.86733038,21238.0,21237.0,0.00233534]
[1674044475964,4.40642986,21238.0,21237.0,0.00070323]
[1674044476233,4.57536046,21238.0,21237.0,0.00070323]
[1674044476483,4.40642986,21238.0,21237.0,0.00070323]
[1674044476735,4.57536039,21238.0,21237.0,0.00070323]
[1674044477269,4.35012492,21238.0,21237.0,0.00070323]
[1674044477802,4.57536039,21238.0,21237.0,0.00070323]
[1674044479156,4.90974584,21238.0,21237.0,0.00070323]
[1674044479674,4.62755943,21238.0,21237.0,0.00070323]
[1674044479922,4.40642986,21238.0,21237.0,0.00070323]
[1674044480233,4.90975448,21238.0,21237.0,0.00070323]
[1674044480424,4.40642986,21238.0,21237.0,0.00070323]
[1674044480683,4.90975919,21238.0,21237.0,0.00070323]
[1674044480956,4.40642986,21238.0,21237.0,0.00070323]
[1674044481209,4.90975882,21238.0,21237.0,0.00070323]
[1674044482217,4.68452335,21238.0,21237.0,0.00070323]
[1674044482469,4.90978011,21238.0,21237.0,0.00070323]
[1674044482725,4.68452335,21238.0,21237.0,0.00070323]
[1674044482980,4.68452335,21238.0,21237.0,0.06207671]
[1674044483239,5.20978152,21238.0,21237.0,0.06207671]
[1674044483492,4.98452335,21238.0,21237.0,0.06207671]
[1674044484008,4.70233694,21238.0,21237.0,0.06207671]
[1674044484517,4.98395576,21238.0,21237.0,0.06207671]
[1674044484774,4.68470888,21238.0,21237.0,0.06207671]
[1674044485782,4.59370888,21238.0,21237.0,0.06207671]
[1674044486037,4.68570888,21238.0,21237.0,0.06207671]
[1674044486297,4.59370888,21238.0,21237.0,0.06207671]
[1674044486572,4.68570888,21238.0,21237.0,0.06207671]
[1674044487544,5.46240888,21238.0,21237.0,0.06207671]
[1674044489295,5.80023858,21238.0,21237.0,0.06207671]
[1674044491721,5.13393858,21238.0,21237.0,0.06207671]
[1674044492517,5.12614324,21238.0,21237.0,0.06207671]
[1674044492802,6.53935052,21238.0,21237.0,0.01245645]
[1674044493879,6.06524835,21238.0,21237.0,0.01245645]
[1674044494157,6.40368644,21238.0,21237.0,0.01245645]
[1674044494442,4.66033608,21238.0,21237.0,0.01245645]
[1674044494708,0.15,21237.0,21231.0,0.00302254]
[1674044494971,0.2819326,21235.0,21231.0,0.00302254]
[1674044495236,1.75151469,21234.0,21231.0,0.00302254]
[1674044495488,0.311707,21233.0,21231.0,0.00302254]
[1674044495964,1.53188173,21234.0,21231.0,0.00302254]
[1674044496762,0.091,21233.0,21231.0,0.00302254]
[1674044497552,0.091,21233.0,21231.0,0.94503354]
[1674044497811,0.58997473,21234.0,21231.0,0.94503354]
[1674044497812,0.96382825,21234.0,21231.0,0.94503354]
[1674044498104,0.68097473,21234.0,21231.0,0.47402454]
[1674044498373,0.94814669,21234.0,21231.0,0.47402454]
[1674044498624,0.091,21233.0,21231.0,0.00302254]
[1674044498881,1.79295421,21234.0,21231.0,0.00302254]
[1674044499143,1.88361863,21234.0,21231.0,0.00302254]
[1674044499415,1.99639167,21234.0,21231.0,0.00302254]
[1674044499675,2.53940475,21234.0,21231.0,0.00302254]
[1674044499973,0.326871,21233.0,21231.0,0.00302254]
[1674044500214,0.325358,21232.0,21231.0,0.00302254]
[1674044500481,0.320018,21232.0,21231.0,0.00302254]
[1674044500755,1.69598827,21233.0,21231.0,0.00302254]
[1674044501327,0.90585171,21233.0,21231.0,0.00302254]
[1674044501581,0.99685171,21233.0,21231.0,0.00302254]
[1674044502119,2.55506042,21232.0,21231.0,0.00302254]
[1674044502418,4.16280789,21232.0,21231.0,0.00302254]
[1674044502679,3.9371008,21232.0,21231.0,0.00302254]
[1674044503745,3.65516819,21232.0,21231.0,0.00302254]
[1674044503977,3.93720046,21232.0,21231.0,0.00302254]
[1674044504237,4.50230263,21232.0,21231.0,0.00302254]
[1674044507160,4.12927036,21232.0,21231.0,0.00302254]
[1674044507413,4.22027036,21232.0,21231.0,0.00302254]
[1674044507675,4.12927036,21232.0,21231.0,0.00302254]
[1674044507935,4.22027036,21232.0,21231.0,0.00302254]
[1674044508184,4.50214814,21232.0,21231.0,0.00302254]
[1674044509007,4.50214842,21232.0,21231.0,0.00302254]
[1674044509186,4.50214563,21232.0,21231.0,0.00302254]
[1674044510720,5.02783391,21232.0,21231.0,0.00302254]
[1674044511271,4.80236548,21232.0,21231.0,0.00302254]
[1674044511797,4.80233477,21232.0,21231.0,0.00094278]
[1674044513148,5.13786232,21232.0,21231.0,0.00094278]
[1674044513421,5.10153477,21232.0,21231.0,0.00094278]
[1674044513695,4.80153477,21232.0,21231.0,0.00094278]
[1674044513958,3.58347908,21232.0,21231.0,0.19166873]
[1674044514241,3.25150847,21232.0,21231.0,0.00094278]
[1674044514496,2.25296223,21232.0,21231.0,0.00094278]
[1674044516057,2.14027254,21232.0,21231.0,0.00094278]
[1674044516314,2.14027254,21232.0,21231.0,0.11221278]
[1674044516315,1.65027854,21232.0,21231.0,0.11221278]
[1674044516572,1.33940854,21232.0,21231.0,0.11221278]
[1674044516870,1.33940854,21232.0,21231.0,0.00094278]
[1674044518152,1.45209823,21232.0,21231.0,0.00094278]
[1674044519221,1.33940854,21232.0,21231.0,0.00094278]
[1674044519516,1.45209823,21232.0,21231.0,0.00094278]
[1674044520257,1.33940854,21232.0,21231.0,0.00094278]
[1674044520852,1.45209823,21232.0,21231.0,0.00094278]
[1674044521908,1.45209823,21232.0,21231.0,0.11134278]
[1674044523624,1.33940854,21232.0,21231.0,0.11134278]
[1674044525380,1.45209823,21232.0,21231.0,0.11134278]
[1674044525650,0.86842154,21232.0,21231.0,0.11134278]
[1674044526410,0.091,21232.0,21231.0,0.25137695]
[1674044526659,0.091,21232.0,21231.0,0.99183195]
[1674044528753,0.091,21232.0,21231.0,2.53864095]
[1674044528754,0.41623196,21236.0,21231.0,2.53864095]
[1674044529027,0.083,21232.0,21231.0,1.6457403]
[1674044529283,0.30354227,21236.0,21231.0,1.65243595]
[1674044529556,0.30354227,21236.0,21231.0,1.64577407]
[1674044529557,0.038998,21232.0,21231.0,1.64577407]
[1674044529826,0.000998,21232.0,21231.0,2.54093595]
[1674044530604,0.000998,21232.0,21231.0,2.53993595]
[1674044532165,0.038998,21232.0,21231.0,2.54093595]
[1674044537677,0.03893205,21232.0,21231.0,2.54093595]
[1674044540028,0.03893205,21232.0,21231.0,2.49093595]
[1674044540816,0.03893205,21232.0,21231.0,3.54827836]
[1674044541080,0.03893205,21232.0,21231.0,3.17690305]
[1674044542393,0.03893205,21232.0,21231.0,2.51210305]
[1674044545017,0.03893205,21232.0,21231.0,1.30423595]
[1674044545568,0.03893205,21232.0,21231.0,0.56378595]
[1674044545837,0.11099877,21232.0,21231.0,0.001]
[1674044546377,0.03893205,21232.0,21231.0,0.001]
[1674044546635,0.74615657,21232.0,21231.0,0.001]
[1674044547929,0.37387705,21232.0,21231.0,0.001]
[1674044549509,0.03893205,21232.0,21231.0,0.001]
[1674044549768,0.03893205,21232.0,21231.0,0.11227]
[1674044550036,0.03893205,21232.0,21231.0,1.165188]
[1674044550288,0.03893205,21232.0,21231.0,1.465188]
[1674044550555,0.03893205,21232.0,21231.0,1.434634]
[1674044550852,0.03893205,21232.0,21231.0,1.465188]
[1674044551126,0.03893205,21232.0,21231.0,1.734634]
[1674044551393,0.03893205,21232.0,21231.0,1.434634]
[1674044552589,0.03893205,21232.0,21231.0,1.734634]
[1674044552816,0.03893205,21232.0,21231.0,1.434634]
[1674044554612,0.03893205,21232.0,21231.0,1.165188]
[1674044557915,0.03893205,21232.0,21231.0,1.434634]
[1674044558738,0.038,21232.0,21231.0,1.43370195]
[1674044559023,0.038,21232.0,21231.0,1.16425595]
[1674044559534,0.038,21232.0,21231.0,0.69324695]
[1674044560831,0.038,21232.0,21231.0,0.58197695]
[1674044562130,0.038,21232.0,21231.0,6.795e-05]
[1674044563698,0.038,21232.0,21231.0,0.47107695]
[1674044564782,0.038,21232.0,21231.0,6.795e-05]
[1674044565866,0.038,21232.0,21231.0,0.94208595]
[1674044568370,0.038,21232.0,21231.0,0.47107695]
[1674044571097,0.038,21232.0,21231.0,6.795e-05]
[1674044572643,0.038,21232.0,21231.0,0.94208595]
[1674044573172,0.038,21232.0,21231.0,0.47107695]
[1674044573931,0.038,21232.0,21231.0,6.795e-05]
[1674044576014,0.508987,21232.0,21231.0,6.795e-05]
[1674044576267,0.038,21232.0,21231.0,6.795e-05]
[1674044577313,0.360977,21232.0,21231.0,6.795e-05]
[1674044577568,0.188,21232.0,21231.0,6.795e-05]
[1674044578379,0.519581,21232.0,21231.0,6.795e-05]
[1674044578620,0.188,21232.0,21231.0,6.795e-05]
[1674044580163,0.497751,21232.0,21231.0,6.795e-05]
[1674044580413,0.188,21232.0,21231.0,6.795e-05]
[1674044581210,1.129974,21232.0,21231.0,6.795e-05]
[1674044581496,2.83278711,21232.0,21231.0,6.795e-05]
[1674044581752,4.33707104,21232.0,21231.0,6.795e-05]
[1674044582025,3.60179612,21232.0,21231.0,6.795e-05]
[1674044582302,0.68592934,21232.0,21231.0,6.795e-05]
[1674044582536,0.37782234,21232.0,21231.0,0.11133795]
[1674044582783,0.37782234,21232.0,21231.0,6.795e-05]
[1674044583057,0.33982234,21232.0,21230.0,0.47103]
[1674044583344,0.43682234,21232.0,21230.0,0.58163]
[1674044583592,0.33982234,21232.0,21230.0,0.58163]
[1674044584350,0.43782234,21232.0,21230.0,0.58163]
[1674044584873,0.5506865,21232.0,21230.0,0.58163]
[1674044585373,0.43782234,21232.0,21230.0,0.58163]
[1674044585629,0.5506865,21232.0,21230.0,0.58163]
[1674044585904,0.43782234,21232.0,21230.0,0.58163]
[1674044588451,0.43782234,21232.0,21230.0,1.052661]
[1674044588709,0.43782234,21232.0,21231.0,0.269446]
[1674044588965,0.43782234,21232.0,21231.0,0.740455]
[1674044589216,0.098,21232.0,21231.0,0.740455]
[1674044589766,0.90744368,21234.0,21231.0,0.471009]
[1674044590017,0.091,21232.0,21231.0,1.13274395]
[1674044590257,0.091,21232.0,21231.0,1.322362]
[1674044591089,0.11286416,21234.0,21231.0,1.322362]
[1674044591331,0.11286416,21234.0,21232.0,0.11]
[1674044591576,0.11286416,21234.0,21232.0,0.580982]
[1674044592875,0.19486416,21234.0,21232.0,0.580982]
[1674044593132,0.11286416,21234.0,21232.0,0.580982]
[1674044593387,0.19586416,21234.0,21232.0,0.581982]
[1674044596235,0.36490449,21234.0,21232.0,0.581982]
[1674044598850,0.19586416,21234.0,21232.0,0.581982]
[1674044600414,0.35990449,21234.0,21232.0,0.581982]
[1674044600681,0.19086416,21234.0,21232.0,0.581982]
[1674044600937,0.083,21234.0,21232.0,0.581982]
[1674044603010,0.083,21234.0,21232.0,1.052969]
[1674044604816,0.25204033,21234.0,21232.0,1.052969]
[1674044605894,0.083,21234.0,21232.0,1.052969]
[1674044606152,0.25204033,21234.0,21232.0,1.052969]
[1674044606842,0.25204033,21234.0,21232.0,0.581987]
[1674044609726,0.083,21234.0,21232.0,0.581987]
[1674044610239,0.083,21234.0,21232.0,1.052974]
[1674044612285,0.083,21234.0,21233.0,0.269416]
[1674044612505,0.083,21234.0,21233.0,0.470965]
[1674044613677,0.11290992,21235.0,21233.0,0.470965]
[1674044613899,0.28195025,21236.0,21233.0,0.94193]
[1674044614131,0.11290992,21235.0,21233.0,0.94193]
[1674044614380,0.11290992,21236.0,21233.0,0.94193]
[1674044615204,0.083,21235.0,21233.0,0.94293]
[1674044615480,0.11290992,21236.0,21233.0,0.94193]
[1674044615757,0.19590992,21236.0,21233.0,0.94293]
[1674044616030,0.11290992,21236.0,21233.0,0.94193]
[1674044616287,0.083,21235.0,21233.0,0.94193]
[1674044616774,0.083,21235.0,21233.0,0.94293]
[1674044617814,1.01759425,21237.0,21233.0,0.94193]
[1674044618055,0.083,21235.0,21233.0,1.13365595]
[1674044618333,0.083,21235.0,21233.0,0.94293]
[1674044620723,0.083,21235.0,21233.0,0.471965]
[1674044622446,0.083,21235.0,21233.0,0.94293]
[1674044623447,0.083,21235.0,21233.0,1.05353]
[1674044625744,0.19590992,21235.0,21233.0,1.05353]
[1674044625992,0.19590992,21235.0,21233.0,0.582565]
[1674044627326,0.19590992,21235.0,21233.0,1.05353]
[1674044627806,0.19590992,21235.0,21233.0,0.582565]
[1674044628549,0.19590992,21235.0,21233.0,0.58208064]
[1674044629646,0.19590992,21235.0,21233.0,1.05304564]
[1674044630382,0.083,21235.0,21233.0,1.05304564]
[1674044634386,0.083,21235.0,21234.0,0.91285282]
[1674044634649,0.083,21235.0,21234.0,1.85473682]
[1674044635168,0.083,21235.0,21234.0,1.55473682]
[1674044635663,0.4762744,21237.0,21234.0,1.28533482]
[1674044635664,0.11290992,21237.0,21234.0,1.28533482]
[1674044635919,0.083,21235.0,21234.0,1.36706077]
[1674044636197,0.083,21235.0,21234.0,1.58723482]
[1674044636435,0.083,21235.0,21234.0,1.85663182]
[1674044636684,0.28195025,21238.0,21234.0,1.58623482]
[1674044636937,0.083,21235.0,21234.0,1.66706077]
[1674044637193,0.083,21235.0,21234.0,1.58633482]
[1674044637429,0.083,21235.0,21234.0,1.85573082]
[1674044637687,0.083,21235.0,21234.0,2.33776779]
[1674044637932,0.11290992,21240.0,21234.0,2.34526779]
[1674044638175,0.083,21235.0,21234.0,1.7472153]
[1674044638436,0.083,21235.0,21234.0,2.12433482]
[1674044638931,0.11290992,21240.0,21235.0,0.15]
[1674044639185,0.12090992,21240.0,21238.0,0.1108]
[1674044639449,0.73253862,21241.0,21238.0,1.24320695]
[1674044639961,0.29483862,21241.0,21238.0,1.24320695]
[1674044640219,0.29483862,21241.0,21238.0,1.052481]
[1674044641477,0.12579829,21241.0,21238.0,1.052481]
[1674044641731,0.01288837,21241.0,21240.0,1.052518]
[1674044641980,0.08888837,21241.0,21240.0,1.052518]
[1674044642744,0.01288837,21241.0,21240.0,1.352518]
[1674044642960,0.08888837,21241.0,21240.0,1.053518]
[1674044643213,0.08888837,21241.0,21240.0,1.322825]
[1674044643483,0.08888837,21241.0,21240.0,1.053518]
[1674044643747,0.08888837,21241.0,21240.0,1.322825]
[1674044644015,0.08888837,21241.0,21240.0,1.053518]
[1674044646911,0.08888837,21241.0,21240.0,1.322825]
[1674044648198,0.08888837,21241.0,21240.0,0.1119]
[1674044648708,0.08888837,21241.0,21240.0,0.582709]
[1674044650026,0.08888837,21241.0,21240.0,0.852016]
[1674044650312,0.08888837,21241.0,21240.0,0.471809]
[1674044650790,0.08888837,21241.0,21240.0,0.942618]
[1674044651785,0.08888837,21241.0,21240.0,1.211925]
[1674044652277,0.08888837,21241.0,21240.0,1.21183582]
[1674044653039,0.08888837,21241.0,21240.0,0.94252882]
[1674044653555,0.08888837,21241.0,21240.0,1.05292882]
[1674044653806,0.08888837,21241.0,21240.0,1.32223582]
[1674044654326,0.08888837,21241.0,21240.0,1.05292882]
[1674044655395,0.08888837,21241.0,21240.0,1.05278966]
[1674044657469,0.08888837,21241.0,21240.0,1.32209666]
[1674044657694,0.08888837,21241.0,21240.0,1.05278966]
[1674044658477,0.08888837,21241.0,21240.0,1.32209666]
[1674044658736,0.08888837,21241.0,21240.0,0.11117166]
[1674044659245,0.08888837,21241.0,21240.0,0.58198066]
[1674044659500,0.08888837,21241.0,21240.0,0.85128766]
[1674044660279,0.08888837,21241.0,21240.0,0.58198066]
[1674044660793,0.08888837,21241.0,21240.0,1.32209666]
[1674044661895,0.08888837,21241.0,21240.0,1.05278966]
[1674044662120,0.08888837,21241.0,21240.0,1.32209666]
[1674044664695,0.08888837,21241.0,21240.0,0.94238966]
[1674044664952,0.08888837,21241.0,21240.0,0.47158066]
[1674044665209,0.25686174,21241.0,21240.0,0.00077166]
[1674044665469,0.58422774,21241.0,21240.0,0.00077166]
[1674044666021,0.52715437,21241.0,21240.0,0.00077166]
[1674044666535,0.52878737,21241.0,21240.0,0.00077166]
[1674044667322,0.51544237,21241.0,21240.0,0.00077166]
[1674044667845,0.50368337,21241.0,21240.0,0.00077166]
[1674044668818,0.19978837,21241.0,21240.0,0.00077166]
[1674044671719,0.31269829,21241.0,21240.0,0.00077166]
[1674044671988,0.19978837,21241.0,21240.0,0.00077166]
[1674044674596,0.52576785,21241.0,21240.0,0.00077166]
[1674044675390,1.89433133,21241.0,21240.0,0.00077166]
[1674044675659,2.32615907,21241.0,21240.0,0.00077166]
[1674044676465,1.85537207,21241.0,21240.0,0.00077166]
[1674044676735,2.18992015,21241.0,21240.0,0.00077166]
[1674044677266,2.07738691,21241.0,21240.0,0.00077166]
[1674044677553,1.85564306,21241.0,21240.0,0.00077166]
[1674044677749,1.90812767,21241.0,21240.0,0.00077166]
[1674044678014,2.59315792,21241.0,21240.0,0.00077166]
[1674044678273,2.59315792,21241.0,21240.0,0.00070702]
[1674044678528,1.96457457,21241.0,21240.0,0.00070702]
[1674044678795,2.19034503,21241.0,21240.0,0.00070702]
[1674044679061,1.96457457,21241.0,21240.0,0.00070702]
[1674044680158,2.19036522,21241.0,21240.0,0.00070702]
[1674044680650,3.13193922,21241.0,21240.0,0.00070702]
[1674044680927,3.44285376,21241.0,21240.0,0.00070702]
[1674044681191,4.38855348,21241.0,21240.0,0.00070702]
[1674044682281,3.9461681,21241.0,21240.0,0.00070702]
[1674044683899,3.9461681,21241.0,21240.0,0.05394583]
[1674044684460,4.2282948,21241.0,21240.0,0.05394583]
[1674044684731,3.79959936,21241.0,21240.0,0.05394583]
[1674044684990,3.27750973,21241.0,21240.0,0.05394583]
[1674044685245,3.16466588,21241.0,21240.0,0.05394583]
[1674044686014,3.05183273,21241.0,21240.0,0.05394583]
[1674044686275,3.27750973,21241.0,21240.0,0.05394583]
[1674044689057,3.05183273,21241.0,21240.0,0.05394583]
[1674044689743,3.27750973,21241.0,21240.0,0.05394583]
[1674044690007,3.10825703,21241.0,21240.0,0.05394583]
[1674044690257,4.08158857,21241.0,21240.0,0.05394583]
[1674044690519,3.85591157,21241.0,21240.0,0.05394583]
[1674044691097,4.33001374,21241.0,21240.0,0.05394583]
[1674044691357,4.92794296,21241.0,21240.0,0.05394583]
[1674044692385,4.70229326,21241.0,21240.0,0.05394583]
[1674044692642,4.22819109,21241.0,21240.0,0.05394583]
[1674044692859,3.85591157,21241.0,21240.0,0.05394583]
[1674044695411,3.57901973,21241.0,21240.0,0.05394583]
[1674044695687,3.85611156,21241.0,21240.0,0.05394583]
[1674044696166,4.08176793,21241.0,21240.0,0.05394583]
[1674044696413,3.85611156,21241.0,21240.0,0.05394583]
[1674044696906,4.22839108,21241.0,21240.0,0.05394583]
[1674044697694,4.45405279,21241.0,21240.0,0.05394583]
[1674044698241,4.22839108,21241.0,21240.0,0.05394583]
[1674044700537,4.3387599,21241.0,21240.0,0.05394583]
[1674044700804,6.46777223,21241.0,21240.0,0.016562]
[1674044701067,8.68950829,21241.0,21240.0,0.016562]
[1674044701576,8.34614124,21241.0,21240.0,0.0035064]
[1674044701835,8.27014124,21241.0,21240.0,0.0035064]
[1674044702093,8.65333382,21241.0,21240.0,0.0035064]
[1674044702387,7.88093382,21241.0,21240.0,0.0035064]
[1674044702618,7.98793382,21241.0,21240.0,0.0035064]
[1674044703141,7.60701631,21241.0,21240.0,0.0035064]
[1674044703619,7.98293382,21241.0,21240.0,0.0035064]
[1674044704171,7.60201631,21241.0,21240.0,0.0035064]
[1674044704999,7.12791414,21241.0,21240.0,0.0035064]
[1674044706496,4.76170749,21241.0,21240.0,0.0035064]
[1674044707770,4.31341942,21241.0,21240.0,0.0035064]
[1674044712444,4.65170749,21241.0,21240.0,0.0035064]
[1674044712670,4.31341942,21241.0,21240.0,0.0035064]
[1674044713150,4.85038074,21241.0,21240.0,0.0035064]
[1674044713652,4.51209267,21241.0,21240.0,0.0035064]
[1674044713916,4.85038074,21241.0,21240.0,0.0035064]